Cogmind - Beta 16 @@@ ROGUE MODE // 2025.11.09 @ 22:28:30 Player: ChromeKnight Result: Destroyed by MW-0TW(R) with Subdweller Machine Gun Performance ------------- Evolutions (0) 0 Regions Visited (2) 400 Robots Destroyed (15) 75 Value Destroyed (443) 443 Prototype IDs (13) 260 Alien Tech Used (0) 0 Bonus (0) 0 TOTAL SCORE: 1178 Bonus ------- None Cogmind --------- Core Integrity 0/250 Matter 280/300 Energy 125/125 System Corruption 0% Temperature Cool (0) Movement Core (1450) Ox28 Location -10/Subcaves Parts ------- > --- POWER (1) -------- Light Ion Engine > --- PROPULSION (2) --- (None) > --- UTILITY (2) ------ Huge Storage Unit > --- WEAPON (2) ------- Autogun > --- INVENTORY (25) --- Arachnoskeleton Small Storage Unit Rainbow Chip Autogun Autogun Autogun Improved Assault Rifle Improved Assault Rifle SUBCON Basin (Full) Peak State ------------ > --- POWER ------------ Light Ion Engine > --- PROPULSION ------- Light Treads > --- UTILITY ---------- Huge Storage Unit > --- WEAPON ----------- Autogun Subdweller Machine Gun > --- INVENTORY -------- Arachnoskeleton Small Storage Unit Rainbow Chip Autogun Autogun Autogun Improved Assault Rifle Improved Assault Rifle SUBCON Basin [Rating: 29] Favorites ----------- Power Light Ion Engine Engine Light Ion Engine Propulsion Light Treads Treads Light Treads Utility Huge Storage Unit Storage Huge Storage Unit Weapon Heavy EM Pulse Gun Energy Gun Heavy EM Pulse Gun Ballistic Gun Subdweller Machine Gun Build | -11 -10 -10 ------- Run | Yrd Mat Sub Slots Evolved . | . . . Power . | . . . Propulsion . | . . . Utility . | . . . Weapon . | . . . Parts Attached 16 | 6 5 5 Power 1 | 1 . . Engine 1 | 1 . . Core . | . . . Reactor . | . . . Propulsion 2 | 2 . . Treads 2 | 2 . . Leg . | . . . Wheel . | . . . Hover . | . . . Flight . | . . . Utility 2 | 1 1 . Device . | . . . Storage 2 | 1 1 . Processor . | . . . Hackware . | . . . Protection . | . . . Artifact . | . . . Weapon 11 | 2 4 5 Energy Gun 4 | . 2 2 Energy Cannon . | . . . Ballistic Gun 7 | 2 2 3 Ballistic Cannon . | . . . Launcher . | . . . Special Weapon . | . . . Impact Weapon . | . . . Slashing Weapon . | . . . Piercing Weapon . | . . . Special Melee Weapon . | . . . Unidentified Prototypes 1 | . 1 . Parts Lost 6 | . . 6 Power . | . . . Propulsion 2 | . . 2 Utility . | . . . Weapon 4 | . . 4 Highest Loss Streak 2 | . . 2 To Critical Strikes . | . . . Average Backups 7 | . 4 8 Power . | . . . Propulsion . | . . . Utility 1 | . . 1 Weapon 6 | . 3 7 Tool/Special . | . . . Unused Backups 6 | . . 6 Power . | . . . Propulsion 1 | . . 1 Utility 1 | . . 1 Weapon 4 | . . 4 Tool/Special . | . . . Average Slot Usage (%) 80 | . 85 79 Engine 14 | . 14 14 Treads 23 | . 28 22 Storage 14 | . 14 14 Energy Gun 14 | . 10 15 Ballistic Gun 13 | . 17 12 Peak Build Rating 29 | 6 12 29 Average Rating 19 | 4 7 23 On Entrance 5 | . 6 10 Avg Prop Armor Cover (%) . | . . . Naked Turns . | . . . Heaviest Build 90 | 10 89 90 Greatest Support 40 | 40 40 40 Greatest Overweight (x) 29 | . 2 29 Average Overweight (x) 2 | . 1 2 Largest Inventory Capacity 25 | 8 25 25 Average Capacity 22 | 6 15 25 Most Carried 25 | . 11 25 Average Carried 16 | . 4 20 Final Capacity 25 | 8 25 25 Final Carried 25 | . 11 25 Class Distribution -------------------- 100% | Mutant Dominant Class ---------------- Mutant | -10/Materials Mutant | -10/Subcaves Resources | -11 -10 -10 ----------- Run | Yrd Mat Sub Matter Collected 427 | 241 81 105 Remotely . | . . . Salvage Created 581 | . 163 418 Parts 52 | . 7 45 Haulers Intercepted . | . . . Recyclers Shooed . | . . . Parts Field Recycled . | . . . Retrieved Matter . | . . . Parts Self-Destructed 15 | . . 15 Prevented . | . . . Parts Restored . | . . . Kills | -11 -10 -10 ------- Run | Yrd Mat Sub Combat Hostiles Destroyed 13 | . 2 11 Guns 11 | . 2 9 AOE 1 | . . 1 Classes Destroyed 4 | . 2 2 Worker 2 | . 2 . Swarmer 3 | . . 3 Grunt 2 | . 2 . Subdweller 8 | . . 8 Best Kill Streak 3 | . 2 3 Combat Bots Only 3 | . 2 3 Max Kills in Single Turn 2 | . 1 2 Gunslinging 1 | . . 1 Exploded 1 | . . 1 Melee . | . . . Uniques/NPCs Destroyed . | . . . Combat | -11 -10 -10 -------- Run | Yrd Mat Sub Hostile Shots Fired 69 | . 4 65 Missed 18 | . 1 17 Hits 51 | . 3 48 Projectile 51 | . 3 48 Critical Strikes 1 | . . 1 Damage Taken 948 | . 43 905 Core 251 | . 32 219 Absorbed by Shields . | . . . Core Remaining (%) 100 | 100 . . Volleys Fired 75 | . 11 64 Largest 2 | . 2 2 Hottest 90 | . 90 90 Shots Fired 124 | . 22 102 Gun 124 | . 22 102 Cannon . | . . . Launcher . | . . . Special . | . . . Kinetic 44 | . 12 32 Thermal . | . . . Explosive . | . . . Electromagnetic 80 | . 10 70 Robot Hit Streak 23 | . 6 23 Robot Miss Streak 5 | . 5 3 Penetration Max . | . . . Secondary Targets 2 | . . 2 Max Gunslinging Chain 1 | . . 1 Shots Hit Robots 64 | . 13 51 Core Hits 25 | . 6 19 Critical Kills 1 | . 1 . Critical Parts Destroyed . | . . . Critical Strikes 2 | . 2 . Destroy 1 | . 1 . Corrupt 1 | . 1 . Melee Attacks . | . . . Impact . | . . . Slashing . | . . . Piercing . | . . . Sneak Attacks . | . . . Combat Hostiles . | . . . Follow-up Attacks . | . . . Damage Inflicted 915 | . 164 751 Guns 888 | . 164 724 Cannons . | . . . Explosions 27 | . . 27 Melee . | . . . Ramming . | . . . Kinetic 369 | . 48 321 Thermal 27 | . . 27 Explosive . | . . . Electromagnetic 519 | . 116 403 Impact . | . . . Slashing . | . . . Piercing . | . . . Highest Corruption . | . . . Average Corruption . | . . . Corruption Purged . | . . . Corruption Blocked . | . . . Overload Shots . | . . . Overflow Damage . | . . . Projectiles . | . . . Explosions . | . . . Melee . | . . . Knockbacks . | . . . Impact . | . . . Kinetic . | . . . Secondary . | . . . Self-Inflicted Damage . | . . . Shots . | . . . Rammed . | . . . Targets Rammed . | . . . Kicked . | . . . Crushed . | . . . Highest Temperature 144 | . 144 . Average Temperature 66 | . 66 . Received Heat Transfer 108 | . 24 84 Siege Activations . | . . . Martial Activations . | . . . Shielding Activations . | . . . Robots Disrupted . | . . . Combat Hostiles . | . . . Robots Corrupted 1 | . . 1 Combat Hostiles 1 | . . 1 Parts Fried 2 | . . 2 Impact Corruptions . | . . . Robots Melted . | . . . Combat Hostiles . | . . . Parts Melted 1 | . . 1 Heat Transferred . | . . . Parts Sabotaged . | . . . Parts Stolen . | . . . Parts Stripped . | . . . Power Chain Reactions 1 | . . 1 Alert | -11 -10 -10 ------- Run | Yrd Mat Sub Maximum Alert Level . | . . . Low Security (%) 100 | 100 100 . Level 1 . | . . . Level 2 . | . . . Level 3 . | . . . Level 4 . | . . . Level 5 . | . . . High Security . | . . . Max Security . | . . . Peak Influence 65 | . 65 . Initial . | . . . Average 6 | . 6 . Influence Increases 145 | . 75 70 Destroy 0b10 Robot/C 100 | . 40 60 Destroy 0b10 Robot/NC 10 | . 10 . Destroy Leader 20 | . 10 10 Disable Machine 15 | . 15 . Influence Decreases 145 | . 75 70 Time Decay 145 | . 75 70 Squads Dispatched . | . . . Investigation . | . . . Extermination . | . . . Reinforcement . | . . . Assault . | . . . Garrison . | . . . Intercept . | . . . Searches Triggered . | . . . Construction Impeded . | . . . Haulers Reinforced . | . . . Active Scanning Responses . | . . . Cargo Convoy Interrupts . | . . . Stealth | -11 -10 -10 --------- Run | Yrd Mat Sub Distress Signals . | . . . Communications Jammed . | . . . Distress Signals . | . . . Times Spotted 19 | . 7 12 Peak Tracking Total 3 | . 3 3 Tactical Retreats . | . . . Traps | -11 -10 -10 ------- Run | Yrd Mat Sub Traps Triggered . | . . . Indirectly . | . . . Trap Hack Attempts . | . . . Triggered . | . . . Disarmed . | . . . Reprogrammed . | . . . Reused . | . . . Traps Extracted . | . . . Installed . | . . . Triggered . | . . . Machines | -11 -10 -10 ---------- Run | Yrd Mat Sub Machines Disabled 2 | . 1 1 Max in Single Turn 1 | . 1 1 Machines Repaired . | . . . Machines Dismantled . | . . . Machines Sabotaged . | . . . Overloaded Fab Kills . | . . . Hacking | -11 -10 -10 --------- Run | Yrd Mat Sub Machines Accessed 3 | . . 3 Terminals . | . . . Fabricators . | . . . Repair Stations . | . . . Recycling Units . | . . . Scanalyzers . | . . . Garrison Access . | . . . Total Hacks 3 | . . 3 Successful 3 | . . 3 Failed . | . . . Catastrophic . | . . . Database Lockouts . | . . . Manual . | . . . Terminals . | . . . Fabricators . | . . . Repair Stations . | . . . Recycling Units . | . . . Scanalyzers . | . . . Garrison Access . | . . . Terminal Hacks 3 | . . 3 Open Door 1 | . . 1 Proto ID Catalog 1 | . . 1 Release Object 1 | . . 1 Fabricator Hacks . | . . . Repair Station Hacks . | . . . Recycling Unit Hacks . | . . . Scanalyzer . | . . . Garrison Access Hacks . | . . . Unauthorized Hacks . | . . . Terminals . | . . . Fabricators . | . . . Repair Stations . | . . . Recycling Units . | . . . Scanalyzers . | . . . Garrison Access . | . . . Data Cores Recovered . | . . . Used . | . . . Hacking Detections . | . . . Full Trace Events . | . . . Feedback Events . | . . . Feedback Blocked . | . . . Robot Schematics Acquired . | . . . Robots Built . | . . . Authchips . | . . . Time . | . . . Total Robot Build Rating . | . . . Part Schematics Acquired . | . . . Parts Built . | . . . Authchips . | . . . Time . | . . . Total Part Build Rating . | . . . Part Studies Acquired . | . . . Parts Repaired . | . . . Time . | . . . Parts Recycled . | . . . Recycled Matter . | . . . Retrieved Matter . | . . . Retrieved Components . | . . . Parts Scanalyzed . | . . . Part Schematics Acquired . | . . . Parts Damaged . | . . . Bothacking | -11 -10 -10 ------------ Run | Yrd Mat Sub Used RIF Installer . | . . . Robots Hacked . | . . . Non-combat . | . . . Combat . | . . . Robot Hacks Applied . | . . . Relay Couplers Released . | . . . Fabnet Peak Effective % . | . . . Robots Rewired . | . . . Allies Hacked . | . . . Hacks Repelled . | . . . Allies | -11 -10 -10 -------- Run | Yrd Mat Sub Total Allies . | . . . Largest Group . | . . . Highest-Rated Group . | . . . Highest-Rated Ally . | . . . Total Orders . | . . . Ally Attacks . | . . . Total Damage . | . . . Kills . | . . . Allies Corrupted . | . . . Allies Melted . | . . . Intel | -11 -10 -10 ------- Run | Yrd Mat Sub Active Infowar (turns) . | . . . Robot Analysis Total . | . . . Derelict Logs Recovered 1 | . . 1 Drone Launches . | . . . Drone Recoveries . | . . . Exploration | -11 -10 -10 ------------- Run | Yrd Mat Sub Turns Passed 3499 | 60 814 2625 Spaces Moved 886 | 34 198 654 Core 3 | 2 . 1 Treads 883 | 32 198 653 Legs . | . . . Wheels . | . . . Hover . | . . . Flight . | . . . Fastest Speed 50 | 50 160 320 Average Speed 334 | 153 241 372 Slowest Speed 1500 | 160 320 1500 Overloaded Moves . | . . . Propulsion Burnouts . | . . . Robots Hopped . | . . . Potential Cave-ins . | . . . Cave-ins Triggered . | . . . Exploration Rate (%) 26 | 4 25 51 Regions Visited 2 Branch Regions 1 Pre-discovered Areas . | . . . Known Exits Taken . | . . . Unknown Exits Taken 2 | 1 1 . Scrap Searched . | . . . Spaces Dug . | . . . Terrain Destroyed 4 | . . 4 Melee . | . . . Projectile . | . . . AOE 4 | . . 4 Terrain Rammed . | . . . Walls Destroyed . | . . . Machines Disabled . | . . . Actions | -11 -10 -10 --------- Run | Yrd Mat Sub Total 1299 | 39 515 745 Wait 305 | . 289 16 Move 884 | 33 197 654 Hop . | . . . Pick Up 13 | . 10 3 Fast Attach 10 | 6 3 1 Attach 4 | . . 4 Detach 1 | . 1 . Swap 2 | . 2 . Drop 5 | . 2 3 Fire 75 | . 11 64 Melee . | . . . Ram . | . . . Kick . | . . . Crush . | . . . Escape Stasis . | . . . Rewire . | . . . Trap . | . . . Miscellaneous . | . . . Route ------- -11/Scrapyard -10/Materials (discovered 2 exits: [*Min] / *Sub) -10/Subcaves History --------- Turn | Location | Event 6 | -11/Scrapyard | Discovered new exit (range 16) 61 | -11/Scrapyard | Entered Materials 202 | -10/Materials | Discovered new exit (range 9) 309 | -10/Materials | Build established: Mutant 484 | -10/Materials | Discovered new exit (range 7) 875 | -10/Materials | Entered Subcaves 1550 | -10/Subcaves | Found SUBCON Basin 1957 | -10/Subcaves | A swath of the cavern ceiling suddenly collapsed 2205 | -10/Subcaves | Visited 4L-MR0's lab 2434 | -10/Subcaves | A Subdweller sparked back to life 2434 | -10/Subcaves | A Subdweller sparked back to life 2434 | -10/Subcaves | A Subdweller sparked back to life 2441 | -10/Subcaves | Core integrity fell below 50% 2467 | -10/Subcaves | Found Rainbow Chip 2748 | -10/Subcaves | Found Arachnoskeleton 3444 | -10/Subcaves | Learned 2 Materials zone layouts 3478 | -10/Subcaves | Core integrity fell below 20% 3500 | -10/Subcaves | Destroyed by MW-0TW(R) with Subdweller Machine Gun Last Messages --------------- 03099_ Acquired 1 matter. 03105_ Subatomizers dissect the Sub. Monowheel. 03168_ Subatomizers dissect the Sub. Power Source. 03195_ TT-RNG(R): "ECOKILL!" 03201_ TT-RNG(R) destroyed. 03266_ Acquired 18 matter. 03443_ NG-42V(u) tweaks Twisted Machinery. 03444_ Acquired derelict log, extracted data. Data stored: Materials zone layouts (x2). 03475_ NG-42V(u) builds Twisted Machinery. 03478_ K9-QG7(R) destroyed. 03478_ Switching to secondary target: MW-0TW(R). 03480_ MW-0TW(R) affixes Scrap Shield Fragment to Scrap Shield. 03481_ Lgt. Treads destroyed. 03488_ MW-0TW(R) affixes Scrap Shield Fragment to Scrap Shield. 03496_ Sub. Machine Gun destroyed. Map ----- +----------------------------------------------------+ | ?????????????????????????????????????????????????? | | ?????????????????????????????????????????????????? | | ?????????????????????????????????????????????????? | | ?????????????????????????????????????????????????? | | ?????????????????????????????????????????????????? | | ?????????????????????????????????????????????????? | | ?????????????????????????????????????????????????? | | ?????????????????????????????????????????????????? | | ?????????????????????????????????????????????????? | | ?????????????????????????????????????????????????? | | ?????????????????????????????????????????????????? | | ?????????????????????????????????????????????????? | | ?????????????????????????????????????????????????? | | ?????????????????????????????????????????????????? | | ?????????????????????????????????????????????????? | | ??????????????????????????? ?????????????????????? | | ??????????????????????????# ?????????????????????? | | ??????????????????????#### ?????????????????????? | | ????????????????? ???## ??????????????????????? | | ?????????????????? ??" ??????????????????????? | | ?????????????????# ??""" ??????????????????????? | | ??????????????????#" ?#"" ##?????????????????????? | | ???????????????????# ##"" #?????????????????????? | | ??????????????????## "#""[ #?????????????????????? | | ??????????????????# R##?????????????????????? | | ??????????????????## &@&#?????????????????????? | | ???????????????????# # !##?????????????????????? | | ????????????? #????##### #?????????????????????? | | ??????###### #??????# ###????????????????????? | | ?????# #???????## #????????????????????? | | ????# #????????# ##????????????????????? | | ???# % #??###???## #?????????????????????? | | ??? #??## ##??# ##????????????????????? | | ### #??# ##?# ##???????????????????? | | ## % #???# #### #???????????????????? | | !!= #??## #?# #???????????????????? | | &%* #?## ### ##???????????????????? | | ########?# ## #????????????????????? | | ########## #????????????????????? | | ## ##???????????????????? | | #???????????????????? | | ### #???????????????????? | | ## ##?# #???????????????????? | | ### % #??## ##???????????????????? | | #?###########???### ####????????????????????? | | ##?????????????????#######???????????????????????? | | ?????????????????????????????????????????????????? | | ?????????????????????????????????????????????????? | | ?????????????????????????????????????????????????? | | ?????????????????????????????????????????????????? | +----------------------------------------------------+ Best States ------------- Heat Dissipation 25 Energy Generation 10 Energy Capacity 125 Matter Stores 300 Matter Capacity 300 Sight Range 16 Terrain Scan Density 10 Evasion (%) 40 Recoil Reduction 2 Item Schematics ----------------- None Robot Schematics ------------------ None Fabricated ------------ Nothing Repaired ---------- Nothing Studied --------- None Alien Tech Used ----------------- None Achievements -------------- None Challenges ------------ None Game ------ Seed GunDecoyDetector Manual? 0 Play Time 00:11:01 Cumulative 526.4 hours Start 2025.11.09 @ 22:20:06 End 2025.11.09 @ 22:28:30 Sessions 1 Manual Loads 0 Difficulty Rogue Special Mode None Game No. 860 Rogue 705 Adventurer 148 Explorer 7 Win Type - Total 26 Types 20/1/4/1/0/0/0/0/0/0 Lore% 77 Gallery% 80 Achievement% 64 Wizard Run 0 Options --------- Layout 1 ASCII 0 Keyboard 0 Movement Numpad Keybinds 0 Fullscreen 2 Font 24/Smallcaps Map View 50x40 Zoom Use 0% Tactical HUD 1 Map Filters NONE Filters NONE Steam 1 RUN: 214897be-2aef-456d-9bbd-fba3fc02ed84